fUSD/lending_fUSD_20250916
["ID","MTS","AMOUNT","RATE_DAILY","PERIOD"]
[385815333,1758055895903,-400.0,0.00031506,6]
[385815334,1758055895912,-400.0,0.00031506,6]
[385815335,1758055895921,-400.0,0.00031506,6]
[385815336,1758055895930,-400.0,0.00031506,6]
[385815337,1758055895939,-400.0,0.00031506,6]
[385815338,1758055895949,-201.21613573,0.00031506,6]
[385815339,1758055895957,-467.27556076,0.00031506,6]
[385815340,1758055895966,-400.0,0.00031506,6]
[385815341,1758055895976,-400.0,0.00031506,6]
[385815342,1758055895984,-400.0,0.00031506,6]
[385815343,1758055895994,-400.0,0.00031506,6]
[385815344,1758055896003,-406.57072692,0.00031506,6]
[385815345,1758055896012,-400.0,0.00031506,6]
[385815346,1758055896021,-400.0,0.00031506,6]
[385815347,1758055896030,-400.0,0.00031506,6]
[385815348,1758055896039,-405.18714107,0.00031506,6]
[385815349,1758055896048,-400.0,0.00031506,6]
[385815350,1758055896057,-400.0,0.00031506,6]
[385815351,1758055896066,-400.0,0.00031506,6]
[385815352,1758055896076,-400.0,0.00031506,6]
[385815353,1758055896085,-400.0,0.00031506,6]
[385815354,1758055896094,-396.5533117,0.00031506,6]
[385815355,1758055896103,-400.0,0.00031506,6]
[385815356,1758055896112,-400.0,0.00031506,6]
[385815357,1758055896121,-400.0,0.00031506,6]
[385815358,1758055896130,-400.0,0.00031506,6]
[385815359,1758055896139,-400.0,0.00031506,6]
[385815360,1758055896148,-400.0,0.00031506,6]
[385815361,1758055896157,-400.0,0.00031506,6]
[385815362,1758055896167,-400.0,0.00031506,6]
[385815363,1758055896176,-400.0,0.00031506,6]
[385815364,1758055896184,-400.0,0.00031506,6]
[385815365,1758055896194,-400.0,0.00031506,6]
[385815366,1758055896203,-466.26,0.00031506,6]
[385815367,1758055896213,-400.0,0.00031506,6]
[385815368,1758055896222,-400.0,0.00031506,6]
[385815369,1758055896230,-400.0,0.00031506,6]
[385815370,1758055896239,-400.0,0.00031506,6]
[385815371,1758055896249,-400.0,0.00031506,6]
[385815372,1758055896258,-405.66427912,0.00031506,6]
[385815373,1758055896267,-400.0,0.00031506,6]
[385815374,1758055896276,-400.0,0.00031506,6]
[385815375,1758055896286,-400.0,0.00031506,6]
[385815376,1758055896295,-401.50673957,0.00031506,6]
[385815377,1758055896305,-400.0,0.00031506,6]
[385815378,1758055896314,-400.0,0.00031506,6]
[385815379,1758055896323,-400.0,0.00031506,6]
[385815380,1758055896333,-407.29110796,0.00031506,6]
[385815381,1758055896345,-400.0,0.00031506,6]
[385815382,1758055896355,-271.39097535,0.00031506,6]
[385815383,1758055896364,-519.20839855,0.00031506,6]
[385815384,1758055896373,-400.0,0.00031506,6]
[385815385,1758055896382,-400.0,0.00031506,6]
[385815386,1758055896393,-466.99,0.00031506,6]
[385815387,1758055896402,-400.0,0.00031506,6]
[385815388,1758055896411,-447.67428718,0.00031506,6]
[385815389,1758055896422,-400.0,0.00031506,6]
[385815390,1758055896431,-400.0,0.00031506,6]
[385815391,1758055896440,-406.56219086,0.00031506,6]
[385815392,1758055896449,-400.0,0.00031506,6]
[385815393,1758055896459,-400.0,0.00031506,6]
[385815394,1758055896474,-588.47,0.00031506,6]
[385815395,1758055896486,-400.0,0.00031506,6]
[385815396,1758055896495,-400.0,0.00031506,6]
[385815397,1758055896505,-400.0,0.00031506,6]
[385815398,1758055896515,-400.0,0.00031506,6]
[385815399,1758055896524,-400.0,0.00031506,6]
[385815400,1758055896534,-400.0,0.00031506,6]
[385815401,1758055896543,-400.0,0.00031506,6]
[385815402,1758055896552,-406.41267169,0.00031506,6]
[385815403,1758055896561,-400.0,0.00031506,6]
[385815404,1758055896570,-400.0,0.00031506,6]
[385815405,1758055896579,-493.19601452,0.00031506,6]
[385815406,1758055896589,-400.0,0.00031506,6]
[385815407,1758055896599,-180.58618029,0.00031506,6]
[385815408,1758055896608,-400.0,0.00031506,6]
[385815409,1758055896618,-400.0,0.00031506,6]
[385815410,1758055896627,-400.0,0.00031506,6]
[385815411,1758055896637,-400.0,0.00031506,6]
[385815412,1758055896649,-400.0,0.00031506,6]
[385815413,1758055896658,-400.0,0.00031506,6]
[385815414,1758055896667,-400.0,0.00031506,6]
[385815415,1758055896677,-400.0,0.00031506,6]
[385815416,1758055896686,-400.0,0.00031506,6]
[385815417,1758055896696,-400.0,0.00031506,6]
[385815418,1758055896705,-400.0,0.00031506,6]
[385815419,1758055896714,-400.0,0.00031506,6]
[385815420,1758055896723,-400.0,0.00031506,6]
[385815421,1758055896732,-448.17,0.00031506,6]
[385815422,1758055896742,-400.0,0.00031506,6]
[385815423,1758055896750,-439.12,0.00031506,6]
[385815424,1758055896759,-901.58,0.00031506,6]
[385815425,1758055896768,-400.0,0.00031506,6]
[385815426,1758055896776,-568.53,0.00031506,6]
[385815427,1758055896785,-400.0,0.00031506,6]
[385815428,1758055896793,-400.0,0.00031506,6]
[385815429,1758055896802,-403.03760233,0.00031506,6]
[385815430,1758055896811,-583.89,0.00031506,6]
[385815431,1758055896821,-400.0,0.00031506,6]
[385815432,1758055896830,-400.0,0.00031506,6]
[385815433,1758055896842,-400.0,0.00031506,6]
[385815434,1758055896851,-400.0,0.00031506,6]
[385815435,1758055896861,-400.0,0.00031506,6]
[385815436,1758055896870,-420.55061872,0.00031506,6]
[385815437,1758055896879,-614.16,0.00031506,6]
[385815438,1758055896888,-400.0,0.00031506,6]
[385815439,1758055896897,-400.0,0.00031506,6]
[385815440,1758055896906,-400.0,0.00031506,6]
[385815441,1758055896915,-232.86244042,0.00031506,6]
[385815442,1758055896924,-677.09,0.00031506,6]
[385815443,1758055896935,-400.0,0.00031506,6]
[385815444,1758055896945,-400.0,0.00031506,6]
[385815445,1758055896954,-442.39,0.00031506,6]
[385815446,1758055896963,-437.71,0.00031506,6]
[385815447,1758055896972,-771.61,0.00031506,6]
[385815448,1758055896981,-400.0,0.00031506,6]
[385815449,1758055896991,-933.64,0.00031506,6]
[385815450,1758055897000,-400.0,0.00031506,6]
[385815451,1758055897009,-400.0,0.00031506,6]
[385815452,1758055897018,-400.0,0.00031506,6]
[385815453,1758055897026,-555.07,0.00031506,6]
[385815454,1758055897035,-400.0,0.00031506,6]
[385815455,1758055897043,-400.0,0.00031506,6]
[385815456,1758055897051,-400.0,0.00031506,6]
[385815457,1758055897060,-400.0,0.00031506,6]
[385815458,1758055897069,-438.36,0.00031506,6]
[385815459,1758055897078,-400.0,0.00031506,6]
[385815460,1758055897087,-400.0,0.00031506,6]
[385815461,1758055897096,-400.0,0.00031506,6]
[385815462,1758055897105,-584.99,0.00031506,6]
[385815463,1758055897115,-400.0,0.00031506,6]
[385815464,1758055897124,-433.4,0.00031506,6]
[385815465,1758055897133,-400.0,0.00031506,6]
[385815466,1758055897142,-400.0,0.00031506,6]
[385815467,1758055897151,-400.0,0.00031506,6]
[385815468,1758055897160,-400.0,0.00031506,6]
[385815469,1758055897169,-400.0,0.00031506,6]
[385815470,1758055897179,-400.22,0.00031506,6]
[385815471,1758055897188,-400.0,0.00031506,6]
[385815472,1758055897198,-400.0,0.00031506,6]
[385815473,1758055897207,-400.0,0.00031506,6]
[385815474,1758055897216,-400.0,0.00031506,6]
[385815475,1758055897226,-400.0,0.00031506,6]
[385815476,1758055897235,-400.0,0.00031506,6]
[385815477,1758055897244,-815.51,0.00031506,6]
[385815478,1758055897253,-400.0,0.00031506,6]
[385815479,1758055897262,-400.0,0.00031506,6]
[385815480,1758055897272,-400.0,0.00031506,6]
[385815481,1758055897281,-400.0,0.00031506,6]
[385815482,1758055897290,-667.42,0.00031506,6]
[385815483,1758055897299,-454.53,0.00031506,6]
[385815484,1758055897308,-512.12,0.00031506,6]
[385815485,1758055897317,-400.0,0.00031506,6]
[385815486,1758055897326,-400.0,0.00031506,6]
[385815487,1758055897336,-461.69,0.00031506,6]
[385815488,1758055897350,-400.0,0.00031506,6]
[385815489,1758055897359,-977.81,0.00031506,6]
[385815490,1758055897369,-487.61,0.00031506,6]
[385815491,1758055897378,-493.83,0.00031506,6]
[385815492,1758055897387,-400.0,0.00031506,6]
[385815493,1758055897396,-400.0,0.00031506,6]
[385815494,1758055897406,-316.3579573,0.00031506,6]
[385815495,1758055897415,-439.87,0.00031506,6]
[385815496,1758055897424,-400.0,0.00031506,6]
[385815497,1758055897434,-572.71,0.00031506,6]
[385815498,1758055897443,-410.89480234,0.00031506,6]
[385815499,1758055897453,-400.0,0.00031506,6]
[385815500,1758055897462,-601.77,0.00031506,6]
[385815501,1758055897471,-504.8,0.00031506,6]
[385815502,1758055897480,-400.0,0.00031506,6]
[385815503,1758055897489,-400.0,0.00031506,6]
[385815504,1758055897499,-400.0,0.00031506,6]
[385815505,1758055897508,-400.0,0.00031506,6]
[385815506,1758055897518,-412.65,0.00031506,6]
[385815507,1758055897527,-400.0,0.00031506,6]
[385815508,1758055897537,-496.77,0.00031506,6]
[385815509,1758055897547,-400.0,0.00031506,6]
[385815510,1758055897556,-400.0,0.00031506,6]
[385815511,1758055897565,-400.0,0.00031506,6]
[385815512,1758055897573,-412.10526645,0.00031506,6]
[385815513,1758055897582,-400.0,0.00031506,6]
[385815514,1758055897591,-1174.65,0.00031506,6]
[385815515,1758055897601,-547.6281956,0.00031506,6]
[385815516,1758055897611,-400.0,0.00031506,6]
[385815517,1758055897620,-400.0,0.00031506,6]
[385815518,1758055897630,-482.53,0.00031506,6]
[385815519,1758055897639,-400.0,0.00031506,6]
[385815520,1758055897649,-512.06,0.00031506,6]
[385815521,1758055897658,-400.0,0.00031506,6]
[385815522,1758055897668,-552.22,0.00031506,6]
[385815523,1758055897677,-400.0,0.00031506,6]
[385815524,1758055897687,-400.0,0.00031506,6]
[385815525,1758055897696,-404.94,0.00031506,6]
[385815526,1758055897706,-400.0,0.00031506,6]
[385815527,1758055897715,-829.35,0.00031506,5]
[385815528,1758055897725,-400.0,0.00031506,6]
[385815529,1758055897734,-400.0,0.00031506,6]
[385815530,1758055897746,-447.21,0.00031506,6]
[385815531,1758055897755,-400.0,0.00031506,6]
[385815532,1758055897765,-1534.55,0.00031506,6]
[385815533,1758055897775,-400.0,0.00031506,6]
[385815534,1758055897785,-582.44,0.00031506,6]
[385815535,1758055897795,-439.97,0.00031506,6]
[385815536,1758055897805,-520.07,0.00031506,6]
[385815537,1758055897814,-436.33,0.00031506,6]
[385815538,1758055897823,-476.19,0.00031506,6]
[385815539,1758055897833,-400.0,0.00031506,6]
[385815540,1758055897842,-400.0,0.00031506,6]
[385815541,1758055897853,-2652.66,0.00031506,6]
[385815542,1758055897870,-410.66621316,0.00031506,6]
[385815543,1758055897879,-400.0,0.00031506,6]
[385815544,1758055897888,-851.33,0.00031506,6]
[385815545,1758055897898,-400.0,0.00031506,6]
[385815546,1758055897907,-400.0,0.00031506,6]
[385815547,1758055897917,-400.0,0.00031506,6]
[385815548,1758055897926,-400.0,0.00031506,6]
[385815549,1758055897935,-400.0,0.00031506,6]
[385815550,1758055897944,-400.0,0.00031506,6]
[385815551,1758055897954,-712.67,0.00031506,6]
[385815552,1758055897963,-441.66,0.00031506,6]
[385815553,1758055897972,-606.89,0.00031506,6]
[385815554,1758055897981,-400.0,0.00031506,6]
[385815555,1758055897990,-400.0,0.00031506,6]
[385815556,1758055897999,-400.0,0.00031506,6]
[385815557,1758055898009,-400.0,0.00031506,6]
[385815558,1758055898020,-589.15,0.00031506,6]
[385815559,1758055898030,-400.0,0.00031506,6]
[385815560,1758055898039,-491.06,0.00031506,6]
[385815561,1758055898049,-643.54,0.00031506,6]
[385815562,1758055898059,-531.4,0.00031506,6]
[385815563,1758055898069,-716.44,0.00031506,6]
[385815564,1758055898079,-441.09,0.00031506,6]
[385815565,1758055898089,-498.56,0.00031506,6]
[385815566,1758055898099,-400.0,0.00031506,6]
[385815567,1758055898108,-400.0,0.00031506,6]
[385815568,1758055898120,-692.32,0.00031506,6]
[385815569,1758055898131,-3193.35,0.00031506,6]
[385815570,1758055898141,-400.0,0.00031506,6]
[385815571,1758055898152,-400.0,0.00031506,6]
[385815572,1758055898162,-559.39,0.00031506,6]
[385815573,1758055898172,-994.07,0.00031506,6]
[385815574,1758055898183,-430.31,0.00031506,6]
[385815575,1758055898193,-400.0,0.00031506,6]
[385815576,1758055898203,-412.75,0.00031506,6]
[385815577,1758055898212,-414.15,0.00031506,6]
[385815578,1758055898222,-400.0,0.00031506,6]
[385815579,1758055898231,-449.1,0.00031506,6]
[385815580,1758055898241,-739.18,0.00031506,6]
[385815581,1758055898251,-400.0,0.00031506,6]
[385815582,1758055898260,-400.0,0.00031506,6]
[385815583,1758055898270,-357.7143895,0.00031506,6]
[385815584,1758055898280,-400.0,0.00031506,6]
[385815585,1758055898290,-400.0,0.00031506,6]
[385815586,1758055898300,-1559.48,0.00031506,6]
[385815587,1758055898309,-400.0,0.00031506,6]
[385815588,1758055898319,-400.0,0.00031506,6]
[385815589,1758055898329,-400.0,0.00031506,6]
[385815590,1758055898338,-400.0,0.00031506,6]
[385815591,1758055898354,-400.0,0.00031506,6]
[385815592,1758055898364,-201.32434256,0.00031506,6]
[385815593,1758055898374,-400.0,0.00031506,6]
[385815594,1758055898385,-542.77,0.00031506,6]
[385815595,1758055898395,-400.0,0.00031506,6]
[385815596,1758055898405,-400.0,0.00031506,6]
[385815597,1758055898415,-400.0,0.00031506,6]
[385815598,1758055898425,-400.0,0.00031506,6]
[385815599,1758055898435,-400.0,0.00031506,6]
[385815600,1758055898444,-582.39,0.00031506,6]
[385815601,1758055898454,-479.79,0.00031506,6]
[385815602,1758055898463,-400.0,0.00031506,6]
[385815603,1758055898473,-532.53,0.00031506,6]
[385815604,1758055898483,-400.0,0.00031506,6]
[385815605,1758055898494,-400.0,0.00031506,6]
[385815606,1758055898503,-619.12,0.00031506,6]
[385815607,1758055898512,-400.0,0.00031506,6]
[385815608,1758055898522,-3974.25,0.00031506,6]
[385815609,1758055898532,-441.55,0.00031506,6]
[385815610,1758055898542,-400.0,0.00031506,6]
[385815611,1758055898553,-563.92,0.00031506,6]
[385815612,1758055898564,-400.0,0.00031506,6]
[385815613,1758055898575,-548.54,0.00031506,6]
[385815614,1758055898585,-400.0,0.00031506,6]
[385815615,1758055898594,-400.0,0.00031506,6]
[385815616,1758055898604,-421.81,0.00031506,6]
[385815617,1758055898614,-400.0,0.00031506,6]
[385815618,1758055898623,-400.0,0.00031506,6]
[385815619,1758055898633,-518.36,0.00031506,6]
[385815620,1758055898643,-400.0,0.00031506,6]
[385815621,1758055898652,-510.5,0.00031506,6]
[385815622,1758055898662,-400.0,0.00031506,6]
[385815623,1758055898672,-360.1617921,0.00031506,6]
[385815624,1758055898682,-701.31,0.00031506,6]
[385815625,1758055898691,-400.0,0.00031506,6]
[385815626,1758055898701,-400.0,0.00031506,6]
[385815627,1758055898710,-400.0,0.00031506,6]
[385815628,1758055898720,-400.0,0.00031506,6]
[385815629,1758055898730,-400.0,0.00031506,6]
[385815630,1758055898739,-400.0,0.00031506,6]
[385815631,1758055898750,-400.0,0.00031506,6]
[385815632,1758055898759,-415.13,0.00031506,6]
[385815633,1758055898769,-400.0,0.00031506,6]
[385815634,1758055898779,-636.08,0.00031506,6]
[385815635,1758055898789,-400.0,0.00031506,6]
[385815636,1758055898798,-400.0,0.00031506,6]
[385815637,1758055898808,-509.49,0.00031506,6]
[385815638,1758055898818,-400.0,0.00031506,6]
[385815639,1758055898827,-400.0,0.00031506,6]
[385815640,1758055898837,-501.58,0.00031506,6]
[385815641,1758055898846,-400.0,0.00031506,6]
[385815642,1758055898856,-400.0,0.00031506,6]
[385815643,1758055898865,-400.0,0.00031506,6]
[385815644,1758055898875,-263.99111754,0.00031506,6]
[385815645,1758055898884,-400.0,0.00031506,6]
[385815646,1758055898894,-1169.89,0.00031506,6]
[385815647,1758055898903,-400.0,0.00031506,6]
[385815648,1758055898914,-400.0,0.00031506,6]
[385815649,1758055898923,-400.0,0.00031506,6]
[385815650,1758055898933,-400.0,0.00031506,6]
[385815651,1758055898944,-420.32,0.00031506,6]
[385815652,1758055898954,-400.0,0.00031506,6]
[385815653,1758055898963,-400.0,0.00031506,6]
[385815654,1758055898973,-400.0,0.00031506,6]
[385815655,1758055898983,-400.0,0.00031506,6]
[385815656,1758055898993,-400.0,0.00031506,6]
[385815657,1758055899003,-400.0,0.00031506,6]
[385815658,1758055899014,-400.0,0.00031506,6]
[385815659,1758055899024,-450.3530785,0.00031506,6]
[385815660,1758055899034,-400.0,0.00031506,6]
[385815661,1758055899044,-400.0,0.00031506,6]
[385815662,1758055899054,-400.0,0.00031506,6]
[385815663,1758055899064,-400.0,0.00031506,6]
[385815664,1758055899074,-400.0,0.00031506,6]
[385815665,1758055899083,-515.27,0.00031506,6]
[385815666,1758055899094,-400.0,0.00031506,6]
[385815667,1758055899104,-625.17,0.00031506,6]
[385815668,1758055899113,-400.0,0.00031506,6]
[385815669,1758055899123,-400.0,0.00031506,6]
[385815670,1758055899133,-400.0,0.00031506,6]
[385815671,1758055899143,-400.0,0.00031506,6]
[385815672,1758055899152,-439.62,0.00031506,6]
[385815673,1758055899162,-400.0,0.00031506,6]
[385815674,1758055899172,-400.0,0.00031506,6]
[385815675,1758055899182,-511.44,0.00031506,6]
[385815676,1758055899192,-523.38127508,0.00031506,6]
[385815677,1758055899201,-735.9,0.00031506,6]
[385815678,1758055899211,-1007.96,0.00031506,6]
[385815679,1758055899221,-384.3624383,0.00031506,6]
[385815680,1758055899230,-400.0,0.00031506,6]
[385815681,1758055899240,-400.0,0.00031506,6]
[385815682,1758055899250,-457.27,0.00031506,6]
[385815683,1758055899260,-400.0,0.00031506,6]
[385815684,1758055899270,-539.99,0.00031506,6]
[385815685,1758055899281,-468.84,0.00031506,6]
[385815686,1758055899292,-400.0,0.00031506,6]
[385815687,1758055899303,-592.52,0.00031506,6]
[385815688,1758055899314,-414.16,0.00031506,6]
[385815689,1758055899324,-431.48,0.00031506,6]
[385815690,1758055899334,-400.0,0.00031506,6]
[385815691,1758055899347,-400.0,0.00031506,6]
[385815692,1758055899357,-459.27,0.00031506,6]
[385815693,1758055899366,-400.0,0.00031506,6]
[385815694,1758055899376,-400.0,0.00031506,6]
[385815695,1758055899387,-952.83,0.00031506,6]
[385815696,1758055899397,-714.98,0.00031506,6]
[385815697,1758055899407,-946.11,0.00031506,6]
[385815698,1758055899417,-400.0,0.00031506,6]
[385815699,1758055899426,-2413.87,0.00031506,6]
[385815700,1758055899436,-502.49,0.00031506,6]
[385815701,1758055899446,-525.48,0.00031506,6]
[385815702,1758055899455,-400.0,0.00031506,6]
[385815703,1758055899465,-437.86715473,0.00031506,6]
[385815704,1758055899474,-400.0,0.00031506,6]
[385815705,1758055899484,-528.5,0.00031506,6]
[385815706,1758055899493,-400.0,0.00031506,6]
[385815707,1758055899503,-485.03,0.00031506,6]
[385815708,1758055899513,-499.88,0.00031506,6]
[385815709,1758055899523,-634.51,0.00031506,6]
[385815710,1758055899533,-300.0,0.00031506,6]
[385815711,1758055899544,-400.0,0.00031506,6]
[385815712,1758055899554,-632.16,0.00031506,6]
[385815713,1758055899563,-885.28,0.00031506,6]
[385815714,1758055899573,-400.0,0.00031506,6]
[385815715,1758055899583,-400.0,0.00031506,6]
[385815716,1758055899593,-400.0,0.00031506,6]
[385815717,1758055899604,-472.66,0.00031506,6]
[385815718,1758055899614,-458.62,0.00031506,6]
[385815719,1758055899624,-989.12,0.00031506,6]
[385815720,1758055899635,-400.0,0.00031506,6]
[385815721,1758055899645,-400.0,0.00031506,6]
[385815722,1758055899655,-432.05,0.00031506,6]
[385815723,1758055899665,-400.0,0.00031506,6]
[385815724,1758055899896,-400.0,0.00031506,6]
[385815725,1758055899908,-400.0,0.00031506,6]
[385815726,1758055899918,-400.0,0.00031506,6]
[385815727,1758055899928,-566.3,0.00031506,6]
[385815728,1758055899938,-403.92,0.00031506,6]
[385815729,1758055899947,-1276.01,0.00031506,6]
[385815730,1758055899957,-400.0,0.00031506,6]
[385815731,1758055899966,-400.0,0.00031506,6]
[385815732,1758055899976,-539.68309706,0.00031506,6]
[385815733,1758055899985,-400.0,0.00031506,6]
[385815734,1758055899994,-400.0,0.00031506,6]
[385815735,1758055900004,-400.0,0.00031506,6]
[385815736,1758055900013,-400.0,0.00031506,6]
[385815737,1758055900023,-400.0,0.00031506,6]
[385815738,1758055900033,-418.98,0.00031506,6]
[385815739,1758055900042,-2326.43,0.00031506,6]
[385815740,1758055900051,-400.0,0.00031506,6]
[385815741,1758055900061,-538.32,0.00031506,6]
[385815742,1758055900070,-400.0,0.00031506,6]
[385815743,1758055900080,-579.99,0.00031506,6]
[385815744,1758055900090,-400.0,0.00031506,6]
[385815745,1758055900099,-300.8836088,0.00031506,6]
[385815746,1758055900109,-400.0,0.00031506,6]
[385815747,1758055900118,-400.0,0.00031506,6]
[385815748,1758055900128,-1109.01,0.00031506,6]
[385815749,1758055900137,-867.79,0.00031506,6]
[385815750,1758055900147,-400.0,0.00031506,6]
[385815751,1758055900157,-400.0,0.00031506,6]
[385815752,1758055900166,-400.0,0.00031506,6]
[385815753,1758055900176,-1132.05,0.00031506,6]
[385815754,1758055900186,-1010.91,0.00031506,6]
[385815755,1758055900195,-449.54,0.00031506,6]
[385815756,1758055900205,-662.74,0.00031506,6]
[385815757,1758055900216,-533.65,0.00031506,6]
[385815758,1758055900227,-400.0,0.00031506,6]
[385815759,1758055900236,-400.0,0.00031506,6]
[385815760,1758055900247,-400.0,0.00031506,6]
[385815761,1758055900258,-648.06,0.00031506,6]
[385815762,1758055900269,-1125.68,0.00031506,6]
[385815763,1758055900279,-539.15,0.00031506,6]
[385815764,1758055900289,-400.0,0.00031506,6]
[385815765,1758055900300,-493.22,0.00031506,6]
[385815766,1758055900311,-400.0,0.00031506,6]
[385815767,1758055900322,-589.24,0.00031506,6]
[385815768,1758055900332,-624.32,0.00031506,6]
[385815769,1758055900346,-400.0,0.00031506,6]
[385815770,1758055900355,-798.32,0.00031506,6]
[385815771,1758055900365,-545.36108024,0.00031506,6]
[385815772,1758055900375,-1260.04,0.00031506,6]
[385815773,1758055900386,-623.88,0.00031506,6]
[385815774,1758055900396,-400.0,0.00031506,6]
[385815775,1758055900405,-540.9,0.00031506,6]
[385815776,1758055900414,-576.24,0.00031506,6]
[385815777,1758055900424,-483.13,0.00031506,6]
[385815778,1758055900434,-400.0,0.00031506,6]
[385815779,1758055900443,-1873.62,0.00031506,6]
[385815780,1758055900452,-400.0,0.00031506,6]
[385815781,1758055900462,-619.08,0.00031506,6]
[385815782,1758055900471,-483.51,0.00031506,6]
[385815783,1758055900480,-400.0,0.00031506,6]
[385815784,1758055900490,-3866.02,0.00031506,6]
[385815785,1758055900502,-684.05,0.00031506,6]
[385815786,1758055900514,-832.27,0.00031506,6]
[385815787,1758055900525,-400.0,0.00031506,6]
[385815788,1758055900534,-400.0,0.00031506,6]
[385815789,1758055900543,-1080.44,0.00031506,6]
[385815790,1758055900553,-400.0,0.00031506,6]
[385815791,1758055900563,-400.0,0.00031506,6]
[385815792,1758055900573,-400.0,0.00031506,6]
[385815793,1758055900583,-400.0,0.00031506,6]
[385815794,1758055900593,-400.0,0.00031506,6]
[385815795,1758055900602,-400.0,0.00031506,6]
[385815796,1758055900612,-400.0,0.00031506,6]
[385815797,1758055900621,-539.06,0.00031506,6]
[385815798,1758055900632,-603.43,0.00031506,6]
[385815799,1758055900642,-400.0,0.00031506,6]
[385815800,1758055900651,-674.22,0.00031506,6]
[385815801,1758055900661,-881.46,0.00031506,6]
[385815802,1758055900672,-416.64,0.00031506,6]
[385815803,1758055900682,-430.15445182,0.00031506,6]
[385815804,1758055900692,-456.38,0.00031506,6]
[385815805,1758055900702,-594.86,0.00031506,6]
[385815806,1758055900713,-500.02,0.00031506,6]
[385815807,1758055900723,-863.73,0.00031506,6]
[385815808,1758055900733,-4462.76,0.00031506,6]
[385815809,1758055900743,-416.47,0.00031506,6]
[385815810,1758055900752,-302.37629038,0.00031506,6]
[385815811,1758055900762,-691.5,0.00031506,6]
[385815812,1758055900773,-400.0,0.00031506,6]
[385815813,1758055900782,-400.0,0.00031506,6]
[385815814,1758055900792,-820.55,0.00031506,6]
[385815815,1758055900801,-934.84,0.00031506,6]
[385815816,1758055900811,-400.0,0.00031506,6]
[385815817,1758055900821,-400.0,0.00031506,6]
[385815818,1758055900831,-1000.0,0.00031506,6]
[385815819,1758055900841,-400.0,0.00031506,6]
[385815820,1758055900850,-400.0,0.00031506,6]
[385815821,1758055900860,-423.92,0.00031506,6]
[385815822,1758055900869,-400.0,0.00031506,6]
[385815823,1758055900878,-559.15,0.00031506,6]
[385815824,1758055900888,-600.6,0.00031506,6]
[385815825,1758055900898,-400.0,0.00031506,6]
[385815826,1758055900907,-805.77,0.00031506,6]
[385815827,1758055900917,-400.0,0.00031506,6]
[385815828,1758055900926,-400.0,0.00031506,6]
[385815829,1758055900935,-1316.13,0.00031506,6]
[385815830,1758055900945,-1155.56,0.00031506,6]
[385815831,1758055900955,-910.36,0.00031506,6]
[385815832,1758055900964,-400.0,0.00031506,6]